[Event "Anderssen Memorial Open-A 2020"]
[Site "Wroclaw"]
[Date "2020.08.01"]
[Round "1.6"]
[White "Golecki, Jan"]
[Black "Kopylov, Daniel"]
[Result "0-1"]
[ECO "D85"]
[WhiteElo "2106"]
[BlackElo "2348"]
[Annotator "ChessBase"]
[PlyCount "131"]
[EventDate "2020.08.01"]
[EventType "swiss"]
[EventCountry "POL"]
[SourceTitle "playchess.com"]
[Source "ChessBase"]
[SourceQuality "1"]
[TimeControl "40/5400+15:1800+30"]

1. d4 {[%emt 0:00:00]} Nf6 {[%emt 0:00:00]} 2. c4 {[%emt 0:00:00]} g6 {[%emt 0:00:00]} 3. Nc3 {[%emt 0:00:00]} d5 {[%emt 0:00:00]} 4. cxd5 {[%emt 0:00:00]} Nxd5 {[%emt 0:00:00]} 5. e4 {[%emt 0:00:00]} Nxc3 {[%emt 0:00:00]} 6. bxc3 {[%emt 0:00:00]} Bg7 {[%emt 0:00:14]} 7. Nf3 {[%emt 0:05:46]} c5 {[%emt 0:00:12]} 8. Be3 {[%emt 0:00:00]} Qa5 {[%emt 0:01:21]} 9. Qd2 {[%emt 0:00:00]} O-O {[%emt 0:00:44]} 10. Bc4 {[%emt 0:04:02]} Nc6 {[%emt 0:04:45]} 11. Rb1 {[%emt 0:01:45]} cxd4 {[%emt 0:06:29]} 12. cxd4 {[%emt 0:00:20]} Qxd2+ {[%emt 0:00:23]} 13. Kxd2 {[%emt 0:00:00]} Rd8 {[%emt 0:02:07]} 14. Bd5 {[%emt 0:12:06]} e6 {[%emt 0:04:17]} 15. Bxc6 {[%emt 0:00:19]} bxc6 {[%emt 0:00:00]} 16. Rhc1 {[%emt 0:07:34]} e5 {[%emt 0:01:25]} 17. Rxc6 {[%emt 0:02:49]} exd4 {[%emt 0:00:47]} 18. Bg5 {[%emt 0:03:18]} Re8 {[%emt 0:01:48]} 19. Kd3 {[%emt 0:06:34]} h6 {[%emt 0:06:22]} 20. Bf6 Bxf6 {[%emt 0:17:44]} 21. Rxf6 {[%emt 0:20:38]} Be6 {[%emt 0:00:43]} 22. Nxd4 {[%emt 0:01:16]} Kg7 {[%emt 0:02:55]} 23. Rf3 {[%emt 0:01:14]} Red8 {[%emt 0:01:57]} 24. Rb7 {[%emt 0:07:29]} Bxa2 {[%emt 0:03:04]} 25. Ke3 {[%emt 0:01:59]} a5 {[%emt 0:01:08]} 26. Nc6 {[%emt 0:06:24]} Rdc8 {[%emt 0:06:05]} 27. Rb2 {[%emt 0:04:58]} Be6 {[%emt 0:04:23]} 28. Nd4 {[%emt 0:03:16]} Rc3+ {[%emt 0:12:48]} 29. Kf4 {[%emt 0:04:20]} Rxf3+ {[%emt 0:00:31]} 30. Kxf3 {[%emt 0:00:00]} a4 {[%emt 0:01:15]} 31. Nxe6+ {[%emt 0:00:00]} fxe6 {[%emt 0:00:00]} 32. Ke3 {[%emt 0:00:57]} a3 {[%emt 0:01:11]} 33. Ra2 {[%emt 0:00:00]} Kf6 {[%emt 0:00:37]} 34. f3 {[%emt 0:00:00]} Ke5 {[%emt 0:01:08]} 35. g3 {[%emt 0:00:00]} Ra4 {[%emt 0:00:53]} 36. Kd3 {[%emt 0:00:00]} g5 {[%emt 0:05:49]} 37. h3 {[%emt 0:00:15]} Ra8 {[%emt 0:03:29]} 38. Ke3 {[%emt 0:00:00]} Kd6 {[%emt 0:01:59]} 39. Kd4 {[%emt 0:00:00]} h5 {[%emt 0:00:33]} 40. h4 {[%emt 0:00:00]} gxh4 {[%emt 0:00:00]} 41. gxh4 {[%emt 0:16:06]} Ra4+ {[%emt 0:20:31]} 42. Kd3 {[%emt 0:04:14]} Ke5 {[%emt 0:01:11]} 43. Ke3 {[%emt 0:00:01]} Ra8 {[%emt 0:00:26]} 44. f4+ {[%emt 0:00:17]} Kd6 {[%emt 0:00:25]} 45. Kd4 {[%emt 0:02:46]} Ra4+ {[%emt 0:00:17]} 46. Kd3 {[%emt 0:00:04]} Kc5 {[%emt 0:00:33]} 47. Rc2+ {[%emt 0:07:35]} Kb5 {[%emt 0:01:12]} 48. Ra2 {[%emt 0:00:37]} Kb4 {[%emt 0:02:19]} 49. Ra1 {[%emt 0:01:03]} a2 {[%emt 0:01:57]} 50. Kc2 {[%emt 0:02:25]} Ka3 {[%emt 0:00:47]} 51. Re1 {[%emt 0:01:31]} Rxe4 {[%emt 0:00:50]} 52. Rxe4 {[%emt 0:00:06]} a1=Q {[%emt 0:00:09]} 53. Re3+ {[%emt 0:01:14]} Kb4 {[%emt 0:00:13]} 54. Re4+ {[%emt 0:00:03]} Kc5 {[%emt 0:00:08]} 55. Kd3 {[%emt 0:00:22]} Qd1+ {[%emt 0:00:31]} 56. Ke3 {[%emt 0:00:07]} Qe1+ {[%emt 0:00:09]} 57. Kd3 {[%emt 0:00:26]} Qxh4 {[%emt 0:00:36]} 58. Rxe6 {[%emt 0:00:01]} Qxf4 {[%emt 0:00:13]} 59. Re4 {[%emt 0:00:21]} Qf1+ {[%emt 0:00:13]} 60. Ke3 {[%emt 0:00:05]} h4 {[%emt 0:00:26]} 61. Rf4 {[%emt 0:00:17]} Qe1+ {[%emt 0:00:36]} 62. Kf3 {[%emt 0:00:31]} Qg3+ {[%emt 0:00:14]} 63. Ke4 {[%emt 0:00:04]} h3 {[%emt 0:00:08]} 64. Rf3 {[%emt 0:00:05]} Qg4+ {[%emt 0:00:26]} 65. Ke3 {[%emt 0:00:07]} h2 {[%emt 0:00:09]} 66. Rh3 {[%emt 0:00:05]} 0-1

[Event "Anderssen Memorial Open-A 2020"]
[Site "Wroclaw"]
[Date "2020.08.01"]
[Round "1.9"]
[White "Wong, Gengchun"]
[Black "Bojczewski, Mateusz"]
[Result "1-0"]
[ECO "B17"]
[WhiteElo "2190"]
[BlackElo "1886"]
[Annotator "RC"]
[PlyCount "53"]
[EventDate "2020.08.01"]
[EventType "swiss"]
[EventCountry "POL"]
[SourceTitle "playchess.com"]
[Source "ChessBase"]
[SourceQuality "1"]
[TimeControl "40/5400+15:1800+30"]

1. e4 {[%emt 0:00:00]} c6 {[%emt 0:00:00]} 2. d4 {[%emt 0:00:00]} d5 {[%emt 0:00:00]} 3. Nc3 {[%emt 0:00:00]} dxe4 {[%emt 0:00:00]} 4. Nxe4 {[%emt 0:00:00]} Nd7 {[%emt 0:00:00]} 5. Ng5 {[%emt 0:02:12]} Ngf6 {[%emt 0:03:25]} 6. Bd3 {[%emt 0:03:57]} e6 {[%emt 0:05:21]} 7. N1f3 {[%emt 0:07:50]} Bd6 {[%emt 0:15:11]} 8. Qe2 {[%emt 0:01:44]} h6 {[%emt 0:17:10]} 9. Ne4 {[%emt 0:02:12]} Nxe4 {[%emt 0:00:24]} 10. Qxe4 {[%emt 0:03:14]} Nf6 {[%emt 0:00:01]} 11. Qe2 {[%emt 0:00:00]} O-O {[%emt 0:02:42]} 12. Bd2 {[%emt 0:21:01]} b6 {[%emt 0:01:43]} 13. O-O-O {[%emt 0:00:05]} Bb7 {[%emt 0:01:08]} 14. g4 {[%emt 0:00:46]} Qc7 {[%emt 0:08:41]} 15. g5 {[%emt 0:19:22]} hxg5 {[%emt 0:00:40]} 16. Ne5 {[%emt 0:08:22]} c5 {[%emt 0:21:17]} 17. Bxg5 {[%emt 0:00:58]} Nd5 {[%emt 0:06:15]} 18. Rhg1 {[%emt 0:04:23]} cxd4 {[%emt 0:02:41]} 19. f4 {[%emt 0:17:40]} f5 {[%emt 0:05:25]} 20. Bh6 {[%emt 0:00:16]} Bxe5 {[%emt 0:00:35]} 21. fxe5 {[%emt 0:00:00]} Rf7 {[%emt 0:00:04]} 22. Rg6 {[%emt 0:00:32]} Kf8 {[%emt 0:01:23]} 23. Bg5 {[%emt 0:00:26]} Qd7 {[%emt 0:00:35]} 24. Bb5 {[%emt 0:00:21]} Bc6 {[%emt 0:00:01]} 25. Bxc6 {[%emt 0:00:00]} Qxc6 {[%emt 0:00:00]} 26. Rxd4 {[%emt 0:00:00]} Rc8 {[%emt 0:00:22]} 27. Kb1 {[%emt 0:00:36]} 1-0

[Event "Anderssen Memorial Open-A 2020"]
[Site "Wroclaw"]
[Date "2020.08.01"]
[Round "1.15"]
[White "Trybus, Daniel"]
[Black "Gardian, Adam"]
[Result "1-0"]
[ECO "C06"]
[WhiteElo "1950"]
[BlackElo "1723"]
[Annotator "NA"]
[PlyCount "41"]
[EventDate "2020.08.01"]
[EventType "swiss"]
[EventCountry "POL"]
[SourceTitle "playchess.com"]
[Source "ChessBase"]
[SourceQuality "1"]
[TimeControl "40/5400+15:1800+30"]

{[%evp 21,34,36,22,35,157,147,145,25,46,25,32767,30,17,35,251]} 1. e4 {[%emt 0:00:00]} e6 {[%emt 0:00:00]} 2. d4 {[%emt 0:00:00]} d5 {[%emt 0:00:00]} 3. Nd2 {[%emt 0:00:00]} Nf6 {[%emt 0:00:00]} 4. e5 {[%emt 0:00:00]} Nfd7 {[%emt 0:00:00]} 5. Bd3 {[%emt 0:00:00]} c5 {[%emt 0:00:00]} 6. c3 {[%emt 0:00:00]} Nc6 {[%emt 0:00:00]} 7. Ne2 {[%emt 0:00:00]} cxd4 {[%emt 0:01:40]} 8. cxd4 {[%emt 0:00:00]} f6 {[%emt 0:00:00]} 9. Nf4 {[%emt 0:00:00]} Nxd4 {[%emt 0:02:30]} 10. Qh5+ {[%emt 0:00:00]} Ke7 {[%emt 0:01:24]} 11. exf6+ {[%emt 0:04:25]} Nxf6 {[%emt 0:08:00] [#]} 12. Ng6+ $1 {[%emt 0:00:30] Double Attack, Pin} Ke8 {[%emt 0:05:04]} 13. Qh4 {[%emt 0:00:37]} hxg6 {[%emt 0:04:30]} 14. Qxh8 {[%emt 0:01:48]} (14. Bxg6+ $16 Kd7 15. Qxh8) 14... Kf7 {[%emt 0:02:22]} 15. O-O {[%emt 0:01:32]} e5 {[%emt 0:04:03]} 16. Nb3 {[%emt 0:02:03]} Nxb3 {[%emt 0:01:00]} 17. axb3 {[%emt 0:00:00]} Qb6 $18 {[%emt 0:00:00]} (17... Bf5 $11 {and Black stays safe.} 18. Bxf5 gxf5) 18. Bxg6+ {[%emt 0:01:51]} Kxg6 {[%emt 0:00:00]} 19. Qxf8 {[%emt 0:00:00]} Qxb3 {[%emt 0:00:13]} 20. Ra3 {[%emt 0:00:00]} Qb6 {[%emt 0:02:33]} 21. Rg3+ {[%emt 0:00:00]} 1-0

[Event "Anderssen Memorial Open-A 2020"]
[Site "Wroclaw"]
[Date "2020.08.02"]
[Round "3.4"]
[White "Nguyen, Alex Dac-Vuong"]
[Black "Chmiel, Marcin"]
[Result "*"]
[ECO "B13"]
[WhiteElo "2366"]
[BlackElo "2267"]
[Annotator "RC"]
[PlyCount "49"]
[EventDate "2020.08.01"]
[EventType "swiss"]
[EventCountry "POL"]
[SourceTitle "playchess.com"]
[Source "ChessBase"]
[SourceQuality "1"]
[TimeControl "40/5400+15:1800+30"]

1. c4 {[%emt 0:00:00]} c6 {[%emt 0:00:00]} 2. e4 {[%emt 0:00:00]} d5 {[%emt 0:00:00]} 3. exd5 {[%emt 0:00:00]} cxd5 {[%emt 0:00:00]} 4. d4 {[%emt 0:00:00]} Nf6 {[%emt 0:00:00]} 5. Nc3 {[%emt 0:00:00]} Nc6 {[%emt 0:00:00]} 6. Bg5 {[%emt 0:00:00]} dxc4 {[%emt 0:00:00]} 7. Bxc4 {[%emt 0:00:00]} h6 {[%emt 0:01:12]} 8. Bh4 {[%emt 0:00:00]} e6 {[%emt 0:02:01]} 9. Nf3 {[%emt 0:00:00]} Be7 {[%emt 0:00:03]} 10. O-O {[%emt 0:00:19]} O-O {[%emt 0:00:00]} 11. a3 {[%emt 0:02:29]} Nd5 {[%emt 0:02:06]} 12. Bxd5 {[%emt 0:01:24]} exd5 {[%emt 0:03:34]} 13. Bxe7 {[%emt 0:00:07]} Qxe7 {[%emt 0:02:28]} 14. Re1 {[%emt 0:15:30]} Qd6 {[%emt 0:05:23]} 15. Ne5 {[%emt 0:01:18]} Be6 {[%emt 0:02:45]} 16. Nb5 {[%emt 0:16:38]} Qd8 {[%emt 0:00:41]} 17. Nxc6 {[%emt 0:00:55]} bxc6 {[%emt 0:00:00]} 18. Nc3 {[%emt 0:00:00]} Qh4 {[%emt 0:04:40]} 19. Na4 {[%emt 0:06:13]} Rae8 {[%emt 0:05:00]} 20. Qd2 {[%emt 0:04:45]} Bf5 {[%emt 0:10:16]} 21. Nc5 {[%emt 0:01:03]} Be4 {[%emt 0:05:45]} 22. f3 {[%emt 0:14:48]} Bf5 {[%emt 0:01:13]} 23. Re3 {[%emt 0:01:22]} Re7 24. Re4 Rxe4 {[%emt 0:09:06]} 25. Qe3 {[%emt 0:00:10]} *

[Event "Anderssen Memorial Open-A 2020"]
[Site "Wroclaw"]
[Date "2020.08.02"]
[Round "3.5"]
[White "Wong, Gengchun"]
[Black "Piekielny, Pawel"]
[Result "1/2-1/2"]
[ECO "C03"]
[WhiteElo "2190"]
[BlackElo "2099"]
[Annotator "RC"]
[PlyCount "120"]
[EventDate "2020.08.01"]
[EventType "swiss"]
[EventCountry "POL"]
[SourceTitle "playchess.com"]
[Source "ChessBase"]
[SourceQuality "1"]
[TimeControl "40/5400+15:1800+30"]

1. e4 {[%emt 0:00:00]} e6 {[%emt 0:00:00]} 2. d4 {[%emt 0:00:00]} d5 {[%emt 0:00:00]} 3. Nd2 {[%emt 0:00:00]} Be7 {[%emt 0:00:00]} 4. Bd3 {[%emt 0:00:00]} c5 {[%emt 0:00:16]} 5. dxc5 {[%emt 0:00:00]} Nf6 {[%emt 0:00:09]} 6. Qe2 {[%emt 0:01:27]} Nc6 {[%emt 0:03:31]} 7. Ngf3 {[%emt 0:00:42]} O-O {[%emt 0:01:03]} 8. O-O {[%emt 0:01:26]} Bxc5 {[%emt 0:04:18]} 9. c3 {[%emt 0:03:43]} Be7 {[%emt 0:02:33]} 10. Re1 {[%emt 0:02:16]} a6 {[%emt 0:07:03]} 11. e5 {[%emt 0:07:43]} Nd7 {[%emt 0:00:00]} 12. Nb3 {[%emt 0:00:12]} Nb6 {[%emt 0:03:16]} 13. Bf4 {[%emt 0:01:29]} Bd7 {[%emt 0:00:51]} 14. Rad1 {[%emt 0:02:02]} Rc8 {[%emt 0:01:03]} 15. Qc2 {[%emt 0:00:54]} g6 {[%emt 0:05:00]} 16. Qd2 {[%emt 0:00:00]} Na7 {[%emt 0:06:38]} 17. Bh6 {[%emt 0:05:00]} Bb5 {[%emt 0:03:27]} 18. Bxf8 {[%emt 0:00:22]} Bxf8 {[%emt 0:00:13]} 19. Qf4 {[%emt 0:07:35]} Bxd3 {[%emt 0:02:09]} 20. Rxd3 {[%emt 0:00:00]} Nc4 {[%emt 0:00:11]} 21. Ng5 {[%emt 0:07:27]} Qe8 {[%emt 0:00:13]} 22. Rf3 {[%emt 0:18:27]} Rc7 {[%emt 0:00:48]} 23. Nd4 {[%emt 0:00:24]} Bg7 {[%emt 0:01:11]} 24. b3 {[%emt 0:01:19]} Na3 {[%emt 0:00:23]} 25. Rd3 {[%emt 0:16:39]} Qc8 {[%emt 0:03:33]} 26. Qh4 {[%emt 0:08:01]} h6 {[%emt 0:05:34]} 27. Ngxe6 {[%emt 0:00:38]} Rxc3 {[%emt 0:10:13]} 28. Nf4 {[%emt 0:06:00]} Rxd3 {[%emt 0:15:02]} 29. Nxd3 {[%emt 0:00:00]} Qc3 {[%emt 0:00:02]} 30. Re3 {[%emt 0:02:00]} Qa1+ {[%emt 0:09:10]} 31. Re1 {[%emt 0:00:28]} Qc3 {[%emt 0:00:00]} 32. Re3 {[%emt 0:00:00]} Qa1+ {[%emt 0:00:00]} 33. Ne1 {[%emt 0:00:00]} Nc6 {[%emt 0:00:34]} 34. Nxc6 {[%emt 0:00:47]} bxc6 {[%emt 0:00:00]} 35. Qd8+ {[%emt 0:00:09]} Kh7 {[%emt 0:00:00]} 36. Kf1 {[%emt 0:00:32]} Nc2 {[%emt 0:01:48]} 37. Re2 {[%emt 0:00:00]} Nd4 {[%emt 0:00:52]} 38. Re3 {[%emt 0:00:18]} Nc2 {[%emt 0:00:26]} 39. Re2 {[%emt 0:00:00]} Nd4 {[%emt 0:00:00]} 40. Rd2 {[%emt 0:00:00]} Ne6 {[%emt 0:00:00]} 41. Qd7 {[%emt 0:17:39]} Qxe5 {[%emt 0:20:39]} 42. Qxf7 {[%emt 0:05:12]} Ng5 {[%emt 0:01:49]} 43. Qd7 {[%emt 0:01:33]} Ne4 {[%emt 0:01:39]} 44. Rc2 {[%emt 0:02:03]} Qxh2 {[%emt 0:03:25]} 45. Qxc6 {[%emt 0:00:47]} Qh1+ {[%emt 0:01:57]} 46. Ke2 {[%emt 0:00:01]} Qg1 {[%emt 0:02:31]} 47. Qxd5 {[%emt 0:05:12]} Qxf2+ {[%emt 0:01:34]} 48. Kd3 {[%emt 0:00:18]} Qxe1 {[%emt 0:03:15]} 49. Qxe4 {[%emt 0:00:05]} Qd1+ {[%emt 0:01:00]} 50. Ke3 {[%emt 0:01:38]} Qe1+ {[%emt 0:02:31]} 51. Kf3 {[%emt 0:00:16]} Qd1+ {[%emt 0:01:07]} 52. Re2 {[%emt 0:01:16]} Qf1+ {[%emt 0:01:55]} 53. Kg3 {[%emt 0:00:05]} Qf6 {[%emt 0:00:14]} 54. Qe6 {[%emt 0:01:28]} Qg5+ {[%emt 0:00:13]} 55. Qg4 {[%emt 0:00:18]} Qd5 {[%emt 0:01:19]} 56. Re6 {[%emt 0:00:36]} Be5+ {[%emt 0:00:39]} 57. Kh3 {[%emt 0:00:57]} Qd3+ {[%emt 0:00:17]} 58. Qf3 {[%emt 0:00:46]} Qd7 {[%emt 0:00:01]} 59. Qg4 {[%emt 0:00:21]} Qd3+ {[%emt 0:00:04]} 60. Qf3 {[%emt 0:00:43]} Qd7 {[%emt 0:00:06]} 1/2-1/2

[Event "Anderssen Memorial Open-A 2020"]
[Site "Wroclaw"]
[Date "2020.08.02"]
[Round "3.11"]
[White "Szczesniak, Konrad"]
[Black "Peglau, Dora"]
[Result "1-0"]
[ECO "E48"]
[WhiteElo "2033"]
[BlackElo "1704"]
[Annotator "ChessBase"]
[PlyCount "93"]
[EventDate "2020.08.01"]
[EventType "swiss"]
[EventCountry "POL"]
[SourceTitle "playchess.com"]
[Source "ChessBase"]
[SourceQuality "1"]
[TimeControl "40/5400+15:1800+30"]

1. d4 {[%emt 0:00:00]} Nf6 {[%emt 0:00:00]} 2. c4 {[%emt 0:00:00]} e6 {[%emt 0:00:00]} 3. Nc3 {[%emt 0:00:00]} Bb4 {[%emt 0:00:00]} 4. e3 {[%emt 0:00:00]} O-O {[%emt 0:00:00]} 5. Bd3 {[%emt 0:00:00]} d5 {[%emt 0:00:00]} 6. Nge2 {[%emt 0:00:00]} Re8 {[%emt 0:00:00]} 7. O-O {[%emt 0:00:00]} c5 {[%emt 0:00:55]} 8. Nf4 {[%emt 0:00:00]} cxd4 {[%emt 0:01:07]} 9. exd4 {[%emt 0:00:00]} dxc4 {[%emt 0:00:23]} 10. Bxc4 {[%emt 0:00:00]} Nc6 {[%emt 0:01:30]} 11. Be3 {[%emt 0:01:59]} e5 {[%emt 0:09:41]} 12. dxe5 {[%emt 0:06:20]} Nxe5 {[%emt 0:00:17]} 13. Bb3 {[%emt 0:02:20]} Bf5 {[%emt 0:03:17]} 14. Ncd5 {[%emt 0:01:48]} Nxd5 {[%emt 0:03:42]} 15. Bxd5 {[%emt 0:00:48]} Qd7 {[%emt 0:05:02]} 16. Qb3 {[%emt 0:00:27]} a5 {[%emt 0:02:43]} 17. a3 {[%emt 0:00:12]} Bf8 {[%emt 0:01:25]} 18. Rfd1 {[%emt 0:00:42]} Qe7 {[%emt 0:04:30]} 19. Bd4 {[%emt 0:03:08]} Nc6 {[%emt 0:09:20]} 20. Bc3 {[%emt 0:00:35]} Qc7 {[%emt 0:06:05]} 21. Qc4 {[%emt 0:03:40]} Bd6 {[%emt 0:04:12]} 22. Bxf7+ {[%emt 0:00:16]} Qxf7 {[%emt 0:01:12]} 23. Qxf7+ {[%emt 0:00:00]} Kxf7 {[%emt 0:00:00]} 24. Rxd6 {[%emt 0:00:00]} Re4 {[%emt 0:01:07]} 25. Nh5 {[%emt 0:00:17]} Rg4 {[%emt 0:12:27]} 26. f3 {[%emt 0:01:40]} Rg5 {[%emt 0:00:28]} 27. g4 {[%emt 0:00:38]} Rg8 {[%emt 0:08:06]} 28. Kf2 {[%emt 0:01:23]} Rg6 {[%emt 0:01:38]} 29. Rad1 {[%emt 0:00:28]} Rxd6 {[%emt 0:00:29]} 30. Rxd6 {[%emt 0:00:00]} Bc8 {[%emt 0:00:37]} 31. Rd5 {[%emt 0:00:45]} h6 {[%emt 0:01:37]} 32. Bxa5 {[%emt 0:00:12]} Be6 {[%emt 0:02:56]} 33. Rb5 {[%emt 0:00:53]} Nxa5 {[%emt 0:00:31]} 34. Rxa5 {[%emt 0:00:00]} Rc8 {[%emt 0:00:05]} 35. Rb5 {[%emt 0:00:07]} Rc7 {[%emt 0:00:39]} 36. Nf4 {[%emt 0:00:01]} Bd7 {[%emt 0:00:05]} 37. Rb4 {[%emt 0:00:32]} Rc2+ {[%emt 0:00:06]} 38. Ke3 {[%emt 0:00:00]} Bc6 {[%emt 0:00:11]} 39. h4 {[%emt 0:00:04]} Rc1 {[%emt 0:00:46]} 40. Nd3 {[%emt 0:00:00]} Rh1 {[%emt 0:00:00]} 41. Ne5+ {[%emt 0:15:26]} Ke6 {[%emt 0:16:05]} 42. Nxc6 {[%emt 0:00:06]} bxc6 {[%emt 0:00:06]} 43. h5 {[%emt 0:00:12]} Rd1 {[%emt 0:00:39]} 44. Rb7 {[%emt 0:00:27]} Kf6 {[%emt 0:00:16]} 45. Rb6 {[%emt 0:00:18]} Rc1 {[%emt 0:00:34]} 46. a4 {[%emt 0:00:17]} Ra1 {[%emt 0:00:37]} 47. Rxc6+ 1-0

[Event "Anderssen Memorial Open-A 2020"]
[Site "Wroclaw"]
[Date "2020.08.02"]
[Round "3.15"]
[White "Peglau, Markus"]
[Black "Bojczewski, Mateusz"]
[Result "0-1"]
[ECO "A05"]
[WhiteElo "1910"]
[BlackElo "1886"]
[Annotator "ChessBase"]
[PlyCount "75"]
[EventDate "2020.08.01"]
[EventType "swiss"]
[EventCountry "POL"]
[SourceTitle "playchess.com"]
[Source "ChessBase"]
[SourceQuality "1"]
[TimeControl "40/5400+15:1800+30"]

1. Nf3 {[%emt 0:00:00]} Nf6 {[%emt 0:00:24]} 2. d4 {[%emt 0:00:00]} e6 {[%emt 0:00:00]} 3. Bf4 {[%emt 0:00:00]} c5 {[%emt 0:04:42]} 4. c3 {[%emt 0:00:52]} Nc6 {[%emt 0:02:47]} 5. e3 {[%emt 0:00:35]} d5 {[%emt 0:04:13]} 6. Bd3 {[%emt 0:02:01]} Qb6 {[%emt 0:01:31]} 7. Qb3 {[%emt 0:01:55]} c4 {[%emt 0:12:21]} 8. Qxb6 {[%emt 0:00:09]} axb6 {[%emt 0:00:00]} 9. Bc2 {[%emt 0:00:24]} b5 {[%emt 0:00:00]} 10. Nbd2 {[%emt 0:01:56]} b4 {[%emt 0:00:24]} 11. O-O {[%emt 0:03:49]} Be7 {[%emt 0:03:15]} 12. e4 {[%emt 0:06:38]} O-O {[%emt 0:06:26]} 13. Rfe1 {[%emt 0:03:54]} dxe4 {[%emt 0:02:05]} 14. Nxe4 {[%emt 0:04:18]} Nd5 {[%emt 0:03:09]} 15. Bd2 {[%emt 0:01:21]} b5 {[%emt 0:00:48]} 16. Ng3 {[%emt 0:19:32]} Bb7 {[%emt 0:07:42]} 17. Be4 {[%emt 0:03:59]} bxc3 {[%emt 0:05:58]} 18. bxc3 {[%emt 0:00:57]} Nf6 {[%emt 0:11:03]} 19. Bc2 {[%emt 0:06:52]} Ra3 {[%emt 0:03:15]} 20. Reb1 {[%emt 0:04:06]} Ba6 {[%emt 0:01:24]} 21. Ne4 {[%emt 0:02:17]} Nd5 {[%emt 0:03:53]} 22. Bc1 {[%emt 0:05:29]} Rxc3 {[%emt 0:01:01]} 23. Nxc3 {[%emt 0:00:50]} Nxc3 {[%emt 0:00:00]} 24. a4 {[%emt 0:07:23]} b4 {[%emt 0:01:12]} 25. Rb2 {[%emt 0:03:40]} Ne2+ {[%emt 0:00:00]} 26. Kh1 {[%emt 0:00:00]} Nexd4 {[%emt 0:00:17]} 27. Be4 {[%emt 0:00:53]} f5 {[%emt 0:03:17]} 28. Bxc6 {[%emt 0:01:59]} Nxc6 {[%emt 0:00:00]} 29. Re2 {[%emt 0:00:11]} Kf7 {[%emt 0:02:45]} 30. Rb1 {[%emt 0:04:04]} Rd8 {[%emt 0:01:51]} 31. Bf4 {[%emt 0:00:41]} c3 {[%emt 0:00:55]} 32. Ree1 {[%emt 0:00:54]} Bf6 {[%emt 0:00:13]} 33. Ng5+ {[%emt 0:01:33]} Bxg5 {[%emt 0:00:26]} 34. Bxg5 {[%emt 0:00:00]} Rd5 {[%emt 0:00:25]} 35. Rbd1 {[%emt 0:03:27]} Bd3 {[%emt 0:00:54]} 36. Bc1 {[%emt 0:01:46]} b3 {[%emt 0:00:05]} 37. Ba3 {[%emt 0:00:17]} b2 {[%emt 0:00:04]} 38. Bxb2 {[%emt 0:00:48]} 0-1

[Event "Anderssen Memorial Open-A 2020"]
[Site "Wroclaw"]
[Date "2020.08.03"]
[Round "4.4"]
[White "Piekielny, Pawel"]
[Black "Nguyen, Alex Dac-Vuong"]
[Result "0-1"]
[ECO "B42"]
[WhiteElo "2099"]
[BlackElo "2366"]
[Annotator "ChessBase"]
[PlyCount "136"]
[EventDate "2020.08.01"]
[EventType "swiss"]
[EventCountry "POL"]
[SourceTitle "playchess.com"]
[Source "ChessBase"]
[SourceQuality "1"]
[TimeControl "40/5400+15:1800+30"]

1. e4 {[%emt 0:00:00]} c5 {[%emt 0:00:00]} 2. Nf3 {[%emt 0:00:00]} e6 {[%emt 0:00:00]} 3. d4 {[%emt 0:00:00]} cxd4 {[%emt 0:00:00]} 4. Nxd4 {[%emt 0:00:00]} a6 {[%emt 0:00:00]} 5. Bd3 {[%emt 0:00:00]} Nf6 {[%emt 0:00:00]} 6. O-O {[%emt 0:00:00]} Qc7 {[%emt 0:00:00]} 7. Qe2 {[%emt 0:00:00]} d6 {[%emt 0:00:00]} 8. f4 {[%emt 0:00:00]} Nbd7 {[%emt 0:00:00]} 9. c4 b6 {[%emt 0:03:43]} 10. Nc3 {[%emt 0:00:00]} Be7 {[%emt 0:03:18]} 11. Kh1 {[%emt 0:00:00]} Bb7 {[%emt 0:00:06]} 12. Bd2 {[%emt 0:00:00]} O-O {[%emt 0:01:57]} 13. Rae1 {[%emt 0:00:00]} Rad8 {[%emt 0:01:19]} 14. Nf3 {[%emt 0:00:17]} Rfe8 {[%emt 0:08:18]} 15. e5 {[%emt 0:17:41]} Ng4 {[%emt 0:08:30]} 16. Ng5 {[%emt 0:10:37]} Bxg5 {[%emt 0:04:26]} 17. Qxg4 {[%emt 0:00:00]} Nxe5 {[%emt 0:10:20]} 18. Bxh7+ {[%emt 0:16:25]} Kxh7 {[%emt 0:00:00]} 19. Qh5+ {[%emt 0:00:00]} Kg8 {[%emt 0:00:37]} 20. fxg5 {[%emt 0:00:00]} Qxc4 {[%emt 0:12:52]} 21. Rf4 {[%emt 0:02:21]} Qc6 {[%emt 0:00:00]} 22. Ne4 {[%emt 0:00:37]} Qc2 {[%emt 0:19:52]} 23. Rc1 {[%emt 0:17:04]} Qxb2 {[%emt 0:07:30]} 24. Rh4 {[%emt 0:06:41]} Ng6 {[%emt 0:01:48]} 25. Rc7 {[%emt 0:10:01]} Rd7 {[%emt 0:01:50]} 26. Qh7+ {[%emt 0:03:12]} Kf8 {[%emt 0:00:00]} 27. Nf6 {[%emt 0:00:06]} gxf6 {[%emt 0:00:31]} 28. gxf6 {[%emt 0:00:16]} Qxf6 {[%emt 0:01:21]} 29. Qh6+ {[%emt 0:00:00]} Kg8 {[%emt 0:00:08]} 30. Qh7+ {[%emt 0:00:00]} Kf8 {[%emt 0:00:00]} 31. Qh6+ {[%emt 0:00:00]} Qg7 {[%emt 0:04:00]} 32. Rxd7 {[%emt 0:00:00]} Nxh4 {[%emt 0:00:00]} 33. Rxb7 {[%emt 0:00:00]} Nf5 {[%emt 0:01:29]} 34. Qxg7+ {[%emt 0:00:03]} Kxg7 {[%emt 0:00:00]} 35. Rxb6 {[%emt 0:00:15]} Rc8 {[%emt 0:00:30]} 36. g4 {[%emt 0:01:23]} Nh4 {[%emt 0:01:55]} 37. Rxd6 {[%emt 0:01:10]} Rc2 {[%emt 0:00:00]} 38. Rd3 {[%emt 0:06:04]} Rxa2 {[%emt 0:00:00]} 39. Bc3+ {[%emt 0:00:00]} Kg6 {[%emt 0:01:01]} 40. Rh3 {[%emt 0:00:00]} Kg5 {[%emt 0:00:00]} 41. Bf6+ {[%emt 0:15:25]} Kxf6 {[%emt 0:17:10]} 42. Rxh4 {[%emt 0:00:01]} Kg5 {[%emt 0:01:15]} 43. Rh7 {[%emt 0:00:09]} f6 {[%emt 0:01:04]} 44. Rg7+ {[%emt 0:00:30]} Kh4 {[%emt 0:01:12]} 45. Re7 {[%emt 0:10:18]} e5 {[%emt 0:01:50]} 46. Re6 {[%emt 0:00:25]} Kh3 {[%emt 0:03:04]} 47. Kg1 {[%emt 0:00:05]} Rg2+ {[%emt 0:00:26]} 48. Kf1 {[%emt 0:00:31]} Rxg4 {[%emt 0:00:07]} 49. Rxa6 {[%emt 0:00:14]} Rf4+ {[%emt 0:00:08]} 50. Ke2 {[%emt 0:00:21]} Kxh2 {[%emt 0:00:27]} 51. Ra8 {[%emt 0:00:04]} Kg3 {[%emt 0:01:39]} 52. Rg8+ {[%emt 0:00:05]} Kh4 {[%emt 0:00:06]} 53. Ke3 {[%emt 0:00:31]} Rg4 {[%emt 0:00:39]} 54. Rf8 {[%emt 0:00:04]} Kg5 {[%emt 0:00:07]} 55. Kf3 {[%emt 0:00:04]} Ra4 {[%emt 0:00:10]} 56. Ke3 {[%emt 0:00:19]} Kf5 {[%emt 0:00:08]} 57. Rf7 {[%emt 0:00:08]} Ra3+ {[%emt 0:00:08]} 58. Ke2 {[%emt 0:00:04]} e4 {[%emt 0:00:06]} 59. Rf8 {[%emt 0:00:16]} Ke5 {[%emt 0:00:05]} 60. Rf7 {[%emt 0:00:14]} f5 {[%emt 0:00:08]} 61. Rf8 {[%emt 0:00:32]} Kf4 {[%emt 0:00:11]} 62. Kf2 {[%emt 0:00:31]} Ra2+ {[%emt 0:00:04]} 63. Kf1 {[%emt 0:00:16]} e3 {[%emt 0:00:06]} 64. Rf7 {[%emt 0:00:46]} Ke4 {[%emt 0:00:07]} 65. Rf8 {[%emt 0:00:26]} f4 {[%emt 0:00:10]} 66. Rf7 {[%emt 0:01:00]} Kf3 {[%emt 0:00:07]} 67. Kg1 {[%emt 0:00:04]} Ra1+ {[%emt 0:00:11]} 68. Kh2 {[%emt 0:00:04]} e2 {[%emt 0:00:06]} 0-1